fUST/lending_fUST_20251226
["ID","MTS","AMOUNT","RATE_DAILY","PERIOD"]
[399849466,1766740232615,-500.0,0.00017896,2]
[399849467,1766740232625,-320.1451171,0.00017896,2]
[399849468,1766740232635,-999.24742259,0.00017897,2]
[399849469,1766740232644,-291.78649388,0.00017897,2]
[399849470,1766740232654,-158258.81797218,0.00017899,2]
[399849471,1766740232666,-1371.92452659,0.00017899,2]
[399849472,1766740232677,-1258.77916983,0.00017899,2]
[399849473,1766740232690,-431.61562073,0.00017899,2]
[399849478,1766740238299,-1275.53015737,0.00017844,2]
[399849479,1766740238313,-724.46984263,0.00017844,2]
[399849480,1766740238351,-943.42039274,0.00017844,2]
[399849534,1766740240566,-47056.57960726,0.00017844,2]
[399849536,1766740240576,-293.48667182,0.00017898,2]
[399849538,1766740240586,-453.79381415,0.00017898,2]
[399849540,1766740240595,-728.98062383,0.00017898,2]
[399849542,1766740240606,-728.98062383,0.00017898,2]
[399849544,1766740240615,-728.98062383,0.00017898,2]
[399849546,1766740240625,-728.98062383,0.00017898,2]
[399849548,1766740240636,-728.98062383,0.00017898,2]
[399849550,1766740240645,-728.98062383,0.00017898,2]
[399849552,1766740240655,-728.98062383,0.00017898,2]
[399849554,1766740240665,-728.98062383,0.00017898,2]
[399849556,1766740240674,-728.98062383,0.00017898,2]
[399849558,1766740240684,-728.98062383,0.00017898,2]
[399849560,1766740240694,-728.98062383,0.00017898,2]
[399849563,1766740240703,-728.98062383,0.00017898,2]
[399849565,1766740240712,-728.98062383,0.00017898,2]
[399849567,1766740240722,-728.98062383,0.00017898,2]
[399849569,1766740240731,-728.98062383,0.00017898,2]
[399849571,1766740240741,-728.98062383,0.00017898,2]
[399849573,1766740240751,-728.98062383,0.00017898,2]
[399849575,1766740240761,-728.98062383,0.00017898,2]
[399849577,1766740240771,-728.98062383,0.00017898,2]
[399849579,1766740240781,-728.98062383,0.00017898,2]
[399849581,1766740240791,-3613.41144951,0.00017899,2]
[399849583,1766740240803,-18759.1691956,0.00017899,2]
[399849586,1766740240814,-1000.0,0.00017899,2]
[399849613,1766740244462,-543.13181386,0.00017899,2]
[399849614,1766740245046,-911.75,0.00017899,2]
[399849619,1766740246361,-1654.29364488,0.00017899,2]
[399849624,1766740352659,201.72,0.0003013,120]
[399849625,1766740421460,3768.8249507,0.00030136,120]
[399849626,1766740608713,5000.0,0.000301,120]
[399849627,1766740677935,5000.0,0.00017174,2]
[399849628,1766741026496,277.11083532,0.00016383,7]
[399849629,1766741151400,191.33285867,0.00027603,120]
[399849630,1766741195420,186.41167053,0.00016383,7]
[399849668,1766741432604,-203.74995207,0.00017385,2]
[399849669,1766741432614,-177.888,0.00017431,2]
[399849670,1766741432627,-231.01296362,0.000175,2]
[399849671,1766741432639,-18.60966216,0.000175,2]
[399849672,1766741432649,-676.0,0.00017625,2]
[399849673,1766741432659,-542.6882011,0.000177,2]
[399849681,1766741438560,-1978.79889107,0.000177,2]
[399849682,1766741438570,-676.0,0.00017762,2]
[399849683,1766741438583,-574.12855637,0.00017776,2]
[399849684,1766741438592,-300.0,0.00017785,2]
[399849685,1766741438603,-317.6556699,0.00017786,2]
[399849686,1766741438615,-205.44067028,0.00017786,2]
[399849687,1766741438625,-612.65091569,0.00017786,2]
[399849688,1766741438635,-583.18449906,0.00017786,2]
[399849689,1766741438644,-583.18449906,0.00017786,2]
[399849690,1766741438653,-583.18449906,0.00017786,2]
[399849691,1766741438663,-583.18449906,0.00017786,2]
[399849692,1766741438673,-583.18449906,0.00017786,2]
[399849693,1766741438683,-583.18449906,0.00017786,2]
[399849694,1766741438693,-583.18449906,0.00017786,2]
[399849695,1766741438702,-583.18449906,0.00017786,2]
[399849696,1766741438712,-583.18449906,0.00017786,2]
[399849697,1766741438722,-583.18449906,0.00017786,2]
[399849698,1766741438733,-583.18449906,0.00017786,2]
[399849699,1766741438743,-583.18449906,0.00017786,2]
[399849700,1766741438752,-583.18449906,0.00017786,2]
[399849701,1766741438762,-583.18449906,0.00017786,2]
[399849702,1766741438772,-583.18449906,0.00017786,2]
[399849703,1766741438781,-583.18449906,0.00017786,2]
[399849704,1766741438791,-583.18449906,0.00017786,2]
[399849705,1766741438801,-583.18449906,0.00017786,2]
[399849706,1766741438811,-583.18449906,0.00017786,2]
[399849707,1766741438821,-583.18449906,0.00017786,2]
[399849708,1766741438831,-583.18449906,0.00017786,2]
[399849709,1766741438841,-629.83925899,0.00017786,2]
[399849710,1766741438851,-629.83925899,0.00017786,2]
[399849711,1766741438862,-629.83925899,0.00017786,2]
[399849712,1766741438873,-629.83925899,0.00017786,2]
[399849713,1766741438886,-629.83925899,0.00017786,2]
[399849714,1766741438895,-629.83925899,0.00017786,2]
[399849715,1766741438906,-629.83925899,0.00017786,2]
[399849716,1766741438916,-629.83925899,0.00017786,2]
[399849717,1766741438926,-717.04777176,0.00017786,2]
[399849718,1766741438937,-165.76046166,0.00017787,2]
[399849719,1766741438946,-4677.15581071,0.00017787,2]
[399849720,1766741438959,-925.41947073,0.00017787,2]
[399849721,1766741438971,-5456.90151578,0.00017787,2]
[399849722,1766741438984,-955.32511189,0.00017787,2]
[399849739,1766741440714,-4958.17270198,0.00017787,2]
[399849766,1766741529823,500.0,0.00013273,2]
[399849767,1766741536987,500.0,0.00013273,2]
[399849768,1766741574077,2500.0,0.00030137,120]
[399849769,1766741582717,150.0,6.432e-05,2]
[399849770,1766741583115,150.0,6.739e-05,2]
[399849771,1766741583252,500.0,0.00013273,2]
[399849772,1766741583347,500.0,0.00013273,2]
[399849773,1766741583788,150.0,7.351e-05,2]
[399849774,1766741584828,150.0,8.27e-05,2]
[399849775,1766741585551,150.0,8.576e-05,2]
[399849776,1766741586874,500.0,0.00013273,2]
[399849777,1766741589827,414.26369107,0.00013273,2]
[399849778,1766741589851,85.73630893,0.00013273,2]
[399849779,1766741593583,500.0,0.00013273,2]
[399849781,1766741595999,500.0,0.00013273,2]
[399849782,1766741599486,500.0,0.00013273,2]
[399849783,1766741600220,500.0,0.00013273,2]
[399849784,1766741602544,500.0,0.00013273,2]
[399849785,1766741602764,300.0,0.00013673,2]
[399849786,1766741602928,500.0,0.00013273,2]
[399849787,1766741602967,501.95645661,0.00013273,2]
[399849788,1766741603192,500.0,0.00013273,2]
[399849789,1766741603220,500.0,0.00013273,2]
[399849790,1766741603353,500.0,0.00013273,2]
[399849791,1766741605253,500.0,0.00013273,2]
[399849792,1766741605533,500.0,0.00013273,2]
[399849793,1766741605847,500.0,0.00013273,2]
[399849794,1766741605886,597.91750825,0.00013273,2]
[399849795,1766741650449,150.0,6.905e-05,2]
[399849796,1766741650853,150.0,7.219e-05,2]
[399849797,1766741704234,500.0,0.00013273,2]
[399849798,1766741704262,500.0,0.00013273,2]
[399849799,1766741704288,176.05276669,0.00013273,2]
[399849800,1766741707531,500.0,0.00013273,2]
[399849801,1766741707706,500.0,0.00013273,2]
[399849802,1766741707912,38.34695952,0.00013273,2]
[399849803,1766741707935,461.65304048,0.00013273,2]
[399849804,1766741715509,150.0,6.511e-05,2]
[399849805,1766741715896,150.0,6.821e-05,2]
[399849806,1766741716329,150.0,7.131e-05,2]
[399849807,1766741716751,150.0,7.441e-05,2]
[399849808,1766741717153,150.0,7.751e-05,2]
[399849809,1766741717611,150.0,8.061e-05,2]
[399849810,1766741764523,500.0,0.00013273,2]
[399849811,1766741767708,500.0,0.00013273,2]
[399849812,1766741767736,500.0,0.00013273,2]
[399849813,1766741767851,500.0,0.00013273,2]
[399849814,1766741823584,500.0,0.00013273,2]
[399849815,1766741936349,535.954532,0.00013699,2]
[399849816,1766741944025,500.0,0.00013273,2]
[399849817,1766741945190,500.0,0.00013273,2]
[399849819,1766741945222,500.0,0.00013273,2]
[399849820,1766742003736,500.0,0.00013273,2]
[399849821,1766742004837,500.0,0.00013699,2]
[399849822,1766742063320,379.79953395,0.00013273,2]
[399849823,1766742063356,500.0,0.00013273,2]
[399849824,1766742064637,550.60352669,0.00013273,2]
[399849825,1766742153833,520.0,0.00017174,2]
[399849826,1766742183308,500.0,0.00013273,2]
[399849827,1766742240785,200.47488718,0.00017003,2]
[399849828,1766742243540,229.11415677,0.00017003,2]
[399849829,1766742247407,222.41032293,0.00017003,2]
[399849830,1766742247431,135.22255616,0.00017003,2]
[399849831,1766742304200,500.0,0.00013273,2]
[399849832,1766742304247,500.0,0.00013273,2]
[399849833,1766742304285,500.0,0.00013273,2]
[399849834,1766742304323,500.0,0.00013273,2]
[399849835,1766742304522,500.0,0.00013273,2]
[399849836,1766742363853,449.15883988,0.00013273,2]
[399849837,1766742402125,189.96406044,0.00017003,2]
[399849838,1766742405032,341.59337349,0.00017003,2]
[399849839,1766742418391,176.044195,0.00030137,120]
[399849840,1766742488630,2576.107,0.00030137,120]
[399849841,1766742551932,235.19433006,0.00030136,120]
[399849862,1766742637140,-674.0,0.00017285,2]
[399849863,1766742637151,-216.31943572,0.00017303,2]
[399849864,1766742637161,-164.10642147,0.00017326,2]
[399849865,1766742637173,-1636.91160081,0.00017326,2]
[399849866,1766742637184,-1041.66666667,0.0001742,2]
[399849867,1766742637194,-263.7,0.0001743,2]
[399849868,1766742637204,-1200.0,0.00017563,2]
[399849869,1766742637214,-4792.19178231,0.00017564,2]
[399849870,1766742637223,-300.0,0.00017584,2]
[399849871,1766742637233,-300.0,0.00017584,2]
[399849872,1766742637242,-300.0,0.00017584,2]
[399849873,1766742637253,-3487.10581193,0.00017585,2]
[399849874,1766742637263,-278.0,0.00017585,2]
[399849875,1766742637273,-1200.0,0.00017585,2]
[399849876,1766742637282,-1037.82247138,0.00017586,2]
[399849879,1766742637715,-3187.24674092,0.00017586,2]
[399849880,1766742637725,-150.0,0.00017588,2]
[399849881,1766742637736,-150.0,0.00017588,2]
[399849882,1766742637745,-150.0,0.00017588,2]
[399849883,1766742637755,-500.0,0.00017588,2]
[399849884,1766742637765,-500.0,0.00017588,2]
[399849885,1766742637775,-500.0,0.00017588,2]
[399849886,1766742637785,-500.0,0.00017588,2]
[399849887,1766742637795,-500.0,0.00017588,2]
[399849888,1766742637805,-150.0,0.00017588,2]
[399849889,1766742637815,-150.0,0.00017588,2]
[399849890,1766742637824,-150.0,0.00017588,2]
[399849891,1766742637834,-150.0,0.00017588,2]
[399849892,1766742637845,-620.0,0.00017588,2]
[399849893,1766742637855,-165.76046166,0.00017625,2]
[399849895,1766742637864,-478.75725327,0.00017677,2]
[399849896,1766742637874,-500.0,0.00017684,2]
[399849897,1766742637883,-10000.0,0.00017685,2]
[399849898,1766742637893,-500.0,0.00017685,2]
[399849899,1766742637902,-182.974,0.00017686,2]
[399849900,1766742637912,-500.0,0.00017686,2]
[399849901,1766742637923,-500.0,0.00017686,2]
[399849902,1766742637935,-500.0,0.00017686,2]
[399849903,1766742637945,-500.0,0.00017686,2]
[399849904,1766742637955,-500.0,0.00017686,2]
[399849905,1766742637967,-500.0,0.00017686,2]
[399849906,1766742637977,-500.0,0.00017686,2]
[399849907,1766742637987,-500.0,0.00017686,2]
[399849908,1766742637998,-500.0,0.00017686,2]
[399849909,1766742638008,-500.0,0.00017686,2]
[399849910,1766742638018,-500.0,0.00017686,2]
[399849911,1766742638027,-500.0,0.00017686,2]
[399849912,1766742638037,-199.64,0.00017686,2]
[399849913,1766742638047,-500.0,0.00017686,2]
[399849914,1766742638057,-500.0,0.00017686,2]
[399849915,1766742638066,-500.0,0.00017686,2]
[399849916,1766742638076,-430.31531438,0.00017686,2]
[399849917,1766742638087,-500.0,0.00017686,2]
[399849918,1766742638096,-500.0,0.00017686,2]
[399849919,1766742638106,-500.0,0.00017686,2]
[399849920,1766742638116,-254.9376085,0.00017686,2]
[399849921,1766742638125,-500.0,0.00017686,2]
[399849922,1766742638135,-500.0,0.00017686,2]
[399849923,1766742638145,-500.0,0.00017686,2]
[399849924,1766742638155,-500.0,0.00017686,2]
[399849925,1766742638165,-500.0,0.00017686,2]
[399849926,1766742638176,-500.0,0.00017686,2]
[399849927,1766742638186,-500.0,0.00017686,2]
[399849928,1766742638195,-500.0,0.00017686,2]
[399849929,1766742638206,-500.0,0.00017686,2]
[399849930,1766742638216,-500.0,0.00017686,2]
[399849931,1766742638226,-500.0,0.00017686,2]
[399849932,1766742638236,-500.0,0.00017686,2]
[399849933,1766742638248,-125.75354344,0.00017686,2]
[399849934,1766742638261,-374.24645656,0.00017686,2]
[399849935,1766742638271,-474.53354344,0.00017686,2]
[399849936,1766742638283,-25.46645656,0.00017686,2]
[399849937,1766742638293,-310.3883243,0.00017686,2]
[399849938,1766742638304,-500.0,0.00017686,2]
[399849939,1766742638314,-500.0,0.00017686,2]
[399849940,1766742638323,-500.0,0.00017686,2]
[399849941,1766742638334,-500.0,0.00017686,2]
[399849942,1766742638344,-500.0,0.00017686,2]
[399849943,1766742638354,-151.0,0.00017687,2]
[399849944,1766742638364,-151.0,0.00017687,2]
[399849945,1766742638375,-249.877859,0.00017687,2]
[399849946,1766742638384,-249.877859,0.00017687,2]
[399849947,1766742638394,-249.877859,0.00017687,2]
[399849948,1766742638404,-249.877859,0.00017687,2]
[399849949,1766742638415,-151.0,0.00017687,2]
[399849950,1766742638425,-151.0,0.00017687,2]
[399849951,1766742638435,-151.0,0.00017687,2]
[399849952,1766742638447,-151.0,0.00017687,2]
[399849953,1766742638458,-239.953181,0.00017687,2]
[399849954,1766742638468,-208398.64254068,0.00017687,2]
[399849991,1766742639874,-4041.85773979,0.00017687,2]
[399850169,1766742649508,197.0281149,0.0001415,2]
[399850171,1766742671237,6187.04305513,0.00016903,2]
[399850172,1766742671262,1168.27410877,0.00016903,2]
[399850173,1766742675599,150.0,6.47e-05,2]
[399850174,1766742676024,150.0,6.778e-05,2]
[399850175,1766742676405,150.0,7.086e-05,2]
[399850176,1766742676844,150.0,7.394e-05,2]
[399850177,1766742677251,150.0,7.702e-05,2]
[399850178,1766742677640,150.0,8.01e-05,2]
[399850179,1766742678053,158.59,8.318e-05,2]
[399850180,1766742678459,181.24,8.627e-05,2]
[399850181,1766742678851,203.9,8.935e-05,2]
[399850182,1766742679258,226.55,9.243e-05,2]
[399850183,1766742831646,218.29718335,0.00027623,120]
[399850185,1766742913975,2625.89627877,0.00030137,120]
[399850186,1766742942501,500000.0,0.000301,120]
[399850187,1766743015993,3409.8156416,0.00017162,7]
[399850188,1766743129624,213.9285045,0.00016585,2]
[399850200,1766743280125,160.73417,0.00016699,2]
[399850201,1766743323818,449.15883988,0.00013273,2]
[399850202,1766743356532,2927.81873525,0.0001656,2]
[399850203,1766743356557,1076.07697825,0.0001656,2]
[399850204,1766743450549,1256.94354347,0.00017141,7]
[399850205,1766743453865,1572.6034984,0.00016542,2]
[399850206,1766743555143,462.76,0.00030137,120]
[399850235,1766743837950,-676.0,0.00017418,2]
[399850236,1766743837960,-226.35901101,0.00017418,2]
[399850237,1766743837971,-3696.93556078,0.00017474,2]
[399850238,1766743837982,-1200.0,0.00017483,2]
[399850239,1766743837992,-174.10388662,0.00017484,2]
[399850240,1766743838003,-151.0,0.000175,3]
[399850241,1766743838013,-300.0,0.00017511,2]
[399850242,1766743838023,-1200.0,0.00017511,2]
[399850243,1766743838034,-548.47821906,0.00017512,2]
[399850262,1766743840061,-477.4397096,0.00017512,2]
[399850264,1766743840075,-3358.77313087,0.00017512,2]
[399850267,1766743840090,-1801.01802229,0.00017523,2]
[399850268,1766743840101,-1041.66666667,0.0001755,2]
[399850271,1766743840111,-500.0,0.00017572,2]
[399850272,1766743840121,-350.0,0.00017572,2]
[399850274,1766743840133,-500.0,0.00017572,2]
[399850276,1766743840143,-500.0,0.00017572,2]
[399850279,1766743840155,-298.66776102,0.00017572,2]
[399850280,1766743840172,-500.0,0.00017572,2]
[399850282,1766743840182,-500.0,0.00017572,2]
[399850284,1766743840192,-358.13489832,0.00017572,2]
[399850286,1766743840202,-500.0,0.00017572,2]
[399850288,1766743840212,-500.0,0.00017572,2]
[399850290,1766743840222,-500.0,0.00017572,2]
[399850293,1766743840239,-500.0,0.00017572,2]
[399850295,1766743840254,-500.0,0.00017572,2]
[399850296,1766743840268,-500.0,0.00017572,2]
[399850298,1766743840278,-13346.30148323,0.00017573,2]
[399850300,1766743840290,-478.75725327,0.00017574,2]
[399850302,1766743840302,-500.0,0.00017574,2]
[399850305,1766743840312,-500.0,0.00017574,2]
[399850307,1766743840323,-294.49780382,0.00017574,2]
[399850309,1766743840335,-500.0,0.00017574,2]
[399850311,1766743840346,-500.0,0.00017574,2]
[399850313,1766743840357,-500.0,0.00017574,2]
[399850315,1766743840367,-500.0,0.00017574,2]
[399850317,1766743840377,-500.0,0.00017574,2]
[399850319,1766743840387,-500.0,0.00017574,2]
[399850321,1766743840397,-500.0,0.00017574,2]
[399850323,1766743840407,-552.37174893,0.00017574,2]
[399850325,1766743840417,-1000.0,0.00017574,2]
[399850327,1766743840428,-1063.9634687,0.00017574,2]
[399850329,1766743840438,-559.29879619,0.00017583,2]
[399850332,1766743840451,-500.0,0.00017584,2]
[399850334,1766743840461,-881.88708051,0.00017584,2]
[399850336,1766743840471,-881.88708051,0.00017584,2]
[399850338,1766743840481,-881.88708051,0.00017584,2]
[399850340,1766743840491,-881.88708051,0.00017584,2]
[399850342,1766743840501,-522.74613933,0.00017584,2]
[399850344,1766743840510,-881.88708051,0.00017584,2]
[399850346,1766743840519,-881.88708051,0.00017584,2]
[399850348,1766743840529,-491.83773789,0.00017584,2]
[399850350,1766743840539,-881.88708051,0.00017584,2]
[399850352,1766743840548,-881.88708051,0.00017584,2]
[399850354,1766743840560,-881.88708051,0.00017584,2]
[399850356,1766743840570,-881.88708051,0.00017584,2]
[399850358,1766743840580,-881.88708051,0.00017584,2]
[399850360,1766743840590,-881.88708051,0.00017584,2]
[399850362,1766743840599,-881.88708051,0.00017584,2]
[399850364,1766743840610,-881.88708051,0.00017584,2]
[399850366,1766743840619,-881.88708051,0.00017584,2]
[399850368,1766743840630,-911.28331654,0.00017584,2]
[399850370,1766743840642,-911.28331654,0.00017584,2]
[399850372,1766743840652,-911.28331654,0.00017584,2]
[399850374,1766743840662,-911.28331654,0.00017584,2]
[399850376,1766743840672,-911.28331654,0.00017584,2]
[399850378,1766743840682,-911.28331654,0.00017584,2]
[399850380,1766743840693,-911.28331654,0.00017584,2]
[399850382,1766743840703,-911.28331654,0.00017584,2]
[399850384,1766743840714,-911.28331654,0.00017584,2]
[399850386,1766743840724,-182.975,0.00017584,2]
[399850389,1766743840734,-30730.30221326,0.00017585,2]
[399851011,1766743847073,-14465.5141023,0.00017585,2]
[399851458,1766743870551,500.0,0.00013273,2]
[399851459,1766743871542,500.0,0.00013273,2]
[399851460,1766743878107,500.0,0.00013273,2]
[399851461,1766743879090,500.0,0.00013273,2]
[399851462,1766743881061,419.76499317,0.00013273,2]
[399851463,1766743881107,500.0,0.00013273,2]
[399851464,1766743881138,500.0,0.00013273,2]
[399851465,1766743881168,500.0,0.00013273,2]
[399851466,1766743881261,500.0,0.00013273,2]
[399851467,1766743881374,500.0,0.00013273,2]
[399851468,1766743893291,150.0,6.308e-05,2]
[399851469,1766743893708,150.0,6.608e-05,2]
[399851470,1766743894073,164.19,6.909e-05,2]
[399851471,1766743894476,218.91,7.209e-05,2]
[399851472,1766743895052,273.64,7.509e-05,2]
[399851473,1766743895290,217.88098671,7.81e-05,2]
[399851474,1766743895316,110.48901329,7.81e-05,2]
[399851475,1766743895666,383.1,8.11e-05,2]
[399851476,1766743896064,437.83,8.41e-05,2]
[399851477,1766743896450,492.56,8.711e-05,2]
[399851478,1766743896834,547.29,9.011e-05,2]
[399851479,1766743924516,500.0,0.00013273,2]
[399851480,1766743924550,500.0,0.00013273,2]
[399851481,1766743925075,500.0,0.00013273,2]
[399851482,1766743927648,300.0,0.00013673,2]
[399851483,1766743932475,500.0,0.00013273,2]
[399851484,1766743934012,500.0,0.00013273,2]
[399851485,1766743967692,150.0,6.308e-05,2]
[399851486,1766743968087,150.0,6.608e-05,2]
[399851487,1766743968488,150.0,6.908e-05,2]
[399851488,1766743968971,150.0,7.209e-05,2]
[399851489,1766743969403,150.0,7.509e-05,2]
[399851490,1766743969808,150.0,7.81e-05,2]
[399851491,1766743970201,150.0,8.11e-05,2]
[399851492,1766743983554,516.48873631,0.00013273,2]
[399851493,1766743983603,559.97911691,0.00013273,2]
[399851494,1766743986813,500.0,0.00013273,2]
[399851495,1766743987066,500.0,0.00013699,2]
[399851496,1766744004543,500.0,0.00013273,2]
[399851497,1766744103481,500.0,0.00013273,2]
[399851498,1766744105521,500.0,0.00013273,2]
[399851499,1766744227303,500.0,0.00013273,2]
[399851500,1766744227379,102.27313349,0.00013273,2]
[399851501,1766744227403,397.72686651,0.00013273,2]
[399851502,1766744227464,436.62212951,0.00013273,2]
[399851503,1766744227860,500.0,0.00013273,2]
[399851504,1766744227893,502.33781751,0.00013273,2]
[399851505,1766744230317,500.0,0.00013273,2]
[399851506,1766744230590,500.0,0.00013273,2]
[399851507,1766744230884,500.0,0.00013273,2]
[399851509,1766744404149,500.0,0.00013273,2]
[399851510,1766744406011,500.0,0.00013273,2]
[399851511,1766744406076,500.0,0.00013273,2]
[399851512,1766744406213,500.0,0.00013273,2]
[399851513,1766744463868,500.0,0.00013273,2]
[399851514,1766744464175,500.0,0.00013273,2]
[399851515,1766744465981,500.0,0.00013273,2]
[399851516,1766744584168,500.0,0.00013273,2]
[399851517,1766744584633,500.0,0.00013273,2]
[399851518,1766744641590,-4000.0,0.00017016,2]
[399851519,1766744656593,-225.45909546,0.00017184,2]
[399851520,1766744714050,999.0,0.00016387,2]
[399851528,1766744832438,541.17510276,0.00016803,2]
[399851529,1766744835901,974.11518498,0.00016803,2]
[399851530,1766744838879,1731.76032885,0.00016803,2]
[399851531,1766744842198,2705.87551382,0.00016803,2]
[399851532,1766744845117,3048.08386959,0.00016803,2]
[399851533,1766744845143,844.48040957,0.00016803,2]
[399851534,1766744861399,509.156805,0.00013699,2]
[399851536,1766744919089,4061.05045442,0.0001,2]
[399851537,1766744924368,4585.32233101,0.000154,2]
[399851538,1766744924392,10000.01,0.000154,2]
[399851539,1766744924414,10000.01,0.000154,2]
[399851540,1766744924436,10000.01,0.000154,2]
[399851541,1766744924459,10000.01,0.000154,2]
[399851542,1766744924481,10000.01,0.000154,2]
[399851543,1766744924505,10000.01,0.000154,2]
[399851544,1766744924529,10000.01,0.000154,2]
[399851545,1766744924551,10000.01,0.000154,2]
[399851546,1766744924574,10000.01,0.000154,2]
[399851547,1766744943477,-351.34281099,0.00015094,2]
[399851548,1766744943512,-351.34281099,0.00015246,2]
[399851549,1766744943545,-300.0,0.00015399,2]
[399851550,1766744943938,-500.0,0.00013273,2]
[399851551,1766744946361,-500.0,0.00013273,2]
[399851552,1766744946395,-983.51126369,0.00013821,2]
[399851553,1766744946618,-500.0,0.00013273,2]
[399851554,1766744946655,-500.0,0.00013273,2]
[399851555,1766744949401,-500.0,0.00013273,2]
[399851556,1766744949429,-500.0,0.00013273,2]
[399851557,1766744949456,-500.0,0.00013273,2]
[399851558,1766744950163,-5096.56343525,0.000154,2]
[399851559,1766744950273,-10000.01,0.000154,2]
[399851560,1766744950291,-10000.01,0.000154,2]
[399851561,1766744952424,-500.0,0.00013273,2]
[399851562,1766744952461,-9000.01,0.000154,2]
[399851563,1766744953091,-10000.01,0.000154,2]
[399851564,1766744953222,-10000.01,0.000154,2]
[399851565,1766744965777,5000.0,0.00013273,2]
[399851566,1766744973669,-500.0,0.00013273,2]
[399851567,1766744973699,-500.0,0.00013273,2]
[399851568,1766744973728,-500.0,0.00013273,2]
[399851569,1766744973757,-502.48347529,0.00013273,2]
[399851570,1766744973786,-500.0,0.00013273,2]
[399851571,1766744973814,-500.0,0.00013273,2]
[399851572,1766744973843,-500.0,0.00013273,2]
[399851573,1766744973872,-500.0,0.00013273,2]
[399851574,1766744973901,-500.0,0.00013273,2]
[399851575,1766744973929,-495.04304942,0.00013273,2]
[399851576,1766744976581,-4.95695058,0.00013273,2]
[399851577,1766744976610,-1341.72739524,0.000154,2]
[399851578,1766744976640,-300.0,0.00015707,2]
[399851579,1766744976670,-300.0,0.00015707,2]
[399851580,1766744976699,-300.0,0.00015707,2]
[399851581,1766744976728,-300.0,0.00015707,2]
[399851582,1766744976757,-300.0,0.00015707,2]
[399851583,1766744976786,-300.0,0.00015707,2]
[399851584,1766744976814,-300.0,0.00015707,2]
[399851585,1766744976843,-300.0,0.00015707,2]
[399851586,1766744976893,-300.0,0.00015707,2]
[399851587,1766744976927,-300.0,0.00015707,2]
[399851588,1766744976959,-300.0,0.00015707,2]
[399851589,1766744976991,-300.0,0.00015707,2]
[399851590,1766744982675,-300.0,0.00015707,2]
[399851591,1766744982708,-300.0,0.00015707,2]
[399851592,1766744982738,-300.0,0.00015707,2]
[399851593,1766744982812,-600.0,0.00015707,2]
[399851594,1766744982843,-330.06645133,0.00016803,2]
[399851595,1766744982871,-1056.21264427,0.00016803,2]
[399851596,1766744982903,-1648.68192442,0.00016803,2]
[399851597,1766744985790,-420.0,0.00016847,2]
[399851598,1766744985821,-1512.6046165,0.00016847,2]
[399851599,1766744988173,1000.0,0.00030136,120]
[399851600,1766744988931,5000.0,0.00016803,2]
[399851601,1766744992150,150.0,6.457e-05,2]
[399851602,1766744992543,150.0,6.765e-05,2]
[399851603,1766744992924,216.47,7.072e-05,2]
[399851604,1766744993334,288.63,7.38e-05,2]
[399851605,1766744993739,329.700767,7.687e-05,2]
[399851606,1766744993765,31.089233,7.687e-05,2]
[399851607,1766744994129,432.94,7.995e-05,2]